bitfinex/quotes_SOLUSD_20240703
["timestamp","ask_amount","ask_price","bid_price","bid_amount"]
[1720025451250,6.9982,142.9,142.86,6.9997]
[1720025452051,6.0179,142.91,142.88,6.9984]
[1720025453668,6.0179,142.91,142.86,6.9993]
[1720025453875,13.0156,142.91,142.87,6.9992]
[1720025454750,6.0179,142.91,142.83,16.583]
[1720025455080,7.1682,142.9,142.86,6.9996]
[1720025455369,6.9979,142.9,142.86,6.9996]
[1720025455777,13.0154,142.91,142.87,6.9992]
[1720025457886,6.0179,142.91,142.88,6.9985]
[1720025458086,6.0179,142.91,142.8,59.18041671]
[1720025458261,6.0179,142.91,142.88,6.9986]
[1720025458787,6.0179,142.91,142.87,6.9992]
[1720025458788,13.0154,142.91,142.87,6.9992]
[1720025458997,6.0179,142.91,142.88,6.9988]
[1720025459592,6.0179,142.91,142.87,6.9992]
[1720025459764,13.0154,142.91,142.86,6.9996]
[1720025460183,13.0154,142.91,142.87,6.9993]
[1720025460489,6.9979,142.9,142.86,6.9996]
[1720025460690,6.0179,142.91,142.87,6.9989]
[1720025461159,6.9979,142.9,142.81,45.0]
[1720025461666,6.9979,142.9,142.86,6.9997]
[1720025463995,13.0153,142.91,142.81,45.0]
[1720025464458,13.0153,142.91,142.86,6.9995]
[1720025464859,21.15,142.9,142.86,6.9995]
[1720025465139,6.9994,142.87,142.8,28.040564]
[1720025465269,7.1685,142.89,142.77,29.74]
[1720025465468,6.9985,142.89,142.77,29.74]
[1720025465798,6.998,142.9,142.83,26.4]
[1720025465962,6.0179,142.91,142.83,26.4]
[1720025465963,6.9992,142.88,142.83,26.4]
[1720025466282,6.3579,142.91,142.83,26.4]
[1720025466283,6.9984,142.89,142.85,7.0002]
[1720025466469,13.3554,142.91,142.87,6.9993]
[1720025466785,6.1879,142.91,142.78,21.15]
[1720025466978,6.1879,142.91,142.84,26.4]
[1720025467287,6.1879,142.91,142.87,6.9991]
[1720025468281,6.3635,142.95,142.87,26.4]
[1720025468499,6.3635,142.95,142.88,46.39945762]
[1720025468785,6.3635,142.95,142.93,6.9962]
[1720025468974,6.3635,142.95,142.92,6.9967]
[1720025469372,13.359,142.95,142.91,6.9972]
[1720025469986,6.3635,142.95,142.89,6.9979]
[1720025470285,6.9961,142.94,142.89,6.9982]
[1720025470664,6.9965,142.93,142.89,6.9982]
[1720025471176,6.9961,142.94,142.89,6.9982]
[1720025471568,6.9965,142.93,142.88,51.9986]
[1720025471767,6.7035,142.95,142.87,6.9991]
[1720025471768,45.343,142.95,142.87,6.9991]
[1720025471979,45.343,142.95,142.87,6.999]
[1720025471980,6.9978,142.91,142.87,6.999]
[1720025472170,0.34,142.94,142.86,6.9994]
[1720025472171,6.998,142.9,142.86,6.9994]
[1720025472498,6.9975,142.91,142.86,6.9994]
[1720025472678,0.17,142.92,142.85,7.0002]
[1720025472876,6.9984,142.89,142.85,7.0002]
[1720025473076,6.9987,142.89,142.84,5.7642]
[1720025473287,6.998,142.9,142.85,7.0003]
[1720025473479,6.998,142.9,142.86,6.9998]
[1720025474794,6.9984,142.89,142.85,7.0003]
[1720025476496,6.998,142.9,142.85,7.0003]
[1720025476693,6.0139,142.88,142.8,29.67]
[1720025476891,6.9998,142.87,142.78,26.68543718]
[1720025477095,6.0139,142.88,142.84,7.0008]
[1720025477096,13.0129,142.88,142.84,7.0008]
[1720025477575,10.5129,142.88,142.84,7.0008]
[1720025478203,10.5129,142.88,142.85,7.0003]
[1720025478204,3.5139,142.88,142.85,7.0003]
[1720025478375,3.5139,142.88,142.84,7.0006]
[1720025478572,10.5128,142.88,142.84,7.0006]
[1720025478870,3.5139,142.88,142.78,26.68543718]
[1720025479089,3.5139,142.88,142.85,7.0]
[1720025479688,3.5139,142.88,142.87,6.9993]
[1720025479900,15.0663,142.89,142.8,29.67]
[1720025480189,15.0663,142.89,142.81,45.0]
[1720025480585,15.0663,142.89,142.88,6.9988]
[1720025480791,15.0663,142.89,142.8,29.67]
[1720025480971,15.0663,142.89,142.78,26.68543718]
[1720025480972,7.0018,142.82,142.78,7.0034]
[1720025481291,7.0018,142.82,142.73,3.6965679]
[1720025481292,7.0023,142.81,142.77,7.0041]
[1720025481592,13.1199,142.81,142.77,7.0041]
[1720025482095,20.0,142.88,142.73,23.6275]
[1720025482394,26.9989,142.88,142.84,7.0004]
[1720025482574,20.0,142.88,142.76,29.67]
[1720025482778,20.0,142.88,142.84,7.0005]
[1720025482779,26.9989,142.88,142.84,7.0005]
[1720025483278,6.1176,142.89,142.77,0.17]
[1720025483479,6.1176,142.89,142.86,6.9995]
[1720025483896,13.116,142.89,142.85,7.0001]
[1720025484607,13.116,142.89,142.84,7.0006]
[1720025484982,6.9989,142.88,142.84,7.0006]
[1720025485185,6.9994,142.87,142.83,7.0011]
[1720025485402,6.9994,142.87,142.84,45.0]
[1720025485717,6.999,142.88,142.84,45.0]
[1720025486009,6.999,142.88,142.84,52.0006]
[1720025487112,6.9997,142.87,142.84,45.0]
[1720025487480,6.9997,142.87,142.78,15.0362]
[1720025487481,23.6144,142.89,142.78,15.0362]
[1720025487701,7.0,142.86,142.82,7.0015]
[1720025487889,7.0,142.86,142.83,45.0]
[1720025488313,23.6144,142.89,142.78,15.0362]
[1720025488604,7.0007,142.85,142.8,7.0025]
[1720025488783,7.0009,142.84,142.8,7.0025]
[1720025489498,17.5012,142.85,142.74,15.1607]
[1720025489698,7.0026,142.81,142.77,7.0039]
[1720025489903,7.0019,142.82,142.77,7.0039]
[1720025490378,7.0026,142.81,142.77,7.0039]
[1720025490576,7.0019,142.82,142.78,7.0037]
[1720025490780,28.1857,142.83,142.79,7.0029]
[1720025490982,28.1856,142.83,142.78,7.0036]
[1720025491177,7.0019,142.82,142.78,7.0036]
[1720025491680,7.0023,142.81,142.77,7.004]
[1720025492505,7.0019,142.82,142.77,7.004]
[1720025493501,7.0019,142.82,142.78,7.0037]
[1720025493807,7.003,142.8,142.71,73.279971]
[1720025494001,7.003,142.8,142.76,7.0044]
[1720025495702,21.1842,142.83,142.76,7.0044]
[1720025496002,7.0029,142.8,142.76,7.0044]
[1720025497100,7.0025,142.81,142.76,7.0044]
[1720025497311,7.0025,142.81,142.77,7.0042]
[1720025497489,7.0028,142.8,142.76,7.0046]
[1720025497893,7.0024,142.81,142.76,7.0046]
[1720025499301,7.0028,142.8,142.76,7.0046]
[1720025500304,7.0033,142.79,142.72,66.1842]
[1720025500510,7.0033,142.79,142.75,7.0049]
[1720025500699,7.0033,142.79,142.76,45.0]
[1720025501288,7.0029,142.8,142.76,52.0047]
[1720025502121,21.1842,142.83,142.76,52.0047]
[1720025502319,7.0037,142.79,142.73,26.43]
[1720025502494,7.0039,142.78,142.74,7.0054]
[1720025502689,17.8447,142.82,142.69,2.4775]
[1720025502690,20.17,142.77,142.69,28.061758]
[1720025502900,7.0066,142.73,142.69,28.061758]
[1720025503127,7.0066,142.73,142.68,7.0083]
[1720025503424,23.2857,142.76,142.64,16.0348]
[1720025503425,17.5132,142.75,142.64,16.0348]
[1720025503613,7.0078,142.7,142.66,7.0093]
[1720025503813,7.0074,142.71,142.66,7.0093]
[1720025504104,7.0074,142.71,142.63,26.43]
[1720025504105,7.0074,142.71,142.67,7.0089]
[1720025504306,0.17,142.72,142.62,15.5031]
[1720025504506,7.0092,142.67,142.62,33.4412]
[1720025504717,0.17,142.72,142.64,7.0102]
[1720025504904,0.17,142.72,142.63,7.0108]
[1720025504905,7.0089,142.68,142.63,7.0108]
[1720025505207,7.0087,142.68,142.64,7.0105]
[1720025505514,7.0092,142.67,142.62,26.43]
[1720025505812,7.0097,142.66,142.62,7.0115]
[1720025506108,7.0093,142.67,142.62,7.0115]
[1720025506289,7.0093,142.67,142.57,36.2694155]
[1720025506290,20.34,142.66,142.57,7.0139]
[1720025506489,20.34,142.66,142.55,15.2335]
[1720025506490,7.0119,142.62,142.55,15.2335]
[1720025506709,7.0119,142.62,142.57,7.0139]
[1720025507119,7.0119,142.62,142.58,7.0135]
[1720025507299,7.0112,142.63,142.58,7.0135]
[1720025507505,7.0118,142.62,142.57,7.0139]
[1720025507814,7.0124,142.61,142.56,7.0145]
[1720025508111,7.0116,142.62,142.57,7.014]
[1720025508316,7.1822,142.61,142.56,7.0145]
[1720025509016,5.36058822,142.61,142.56,7.0145]
[1720025509421,7.0136,142.58,142.54,7.0155]
[1720025509605,22.3263,142.6,142.54,7.0155]
[1720025509606,7.0132,142.59,142.54,7.0155]
[1720025509996,7.0132,142.59,142.55,7.015]
[1720025510200,7.0136,142.58,142.54,7.0155]
[1720025510898,7.0136,142.58,142.53,7.0159]
[1720025511313,7.0136,142.58,142.54,7.0155]
[1720025511636,7.0132,142.59,142.55,7.015]
[1720025511790,7.0132,142.59,142.54,7.0154]
[1720025511994,22.3263,142.6,142.48,27.7312067]
[1720025512192,7.0111,142.63,142.58,7.0131]
[1720025512409,22.4757,142.64,142.56,24.5502]
[1720025512410,7.0124,142.61,142.56,24.5502]
[1720025512615,7.0115,142.63,142.58,7.0135]
[1720025512813,7.0115,142.63,142.59,45.0]
[1720025512814,7.0112,142.63,142.59,45.0]
[1720025513606,7.0112,142.63,142.59,52.0129]
[1720025514114,7.0112,142.63,142.59,45.0]
[1720025514115,20.0,142.62,142.59,45.0]
[1720025514302,27.0116,142.62,142.59,45.0]
[1720025514705,20.0,142.62,142.59,45.0]
[1720025515016,7.0131,142.59,142.55,24.5514]
[1720025515223,7.0131,142.59,142.56,45.0]
[1720025515524,20.0,142.63,142.51,1.40216993]
[1720025515525,17.5294,142.62,142.51,1.40216993]
[1720025515728,7.0132,142.59,142.54,7.0152]
[1720025515917,27.3515,142.63,142.52,1.40207154]
[1720025516119,0.17,142.62,142.5,36.9845]
[1720025516826,7.0123,142.61,142.56,7.0142]
[1720025517121,7.0123,142.61,142.57,45.0]
[1720025517519,7.0126,142.6,142.57,45.0]
[1720025517916,7.0126,142.6,142.56,45.0]
[1720025518428,7.0131,142.59,142.56,45.0]
[1720025518626,7.0124,142.61,142.56,52.0144]
[1720025518830,7.0117,142.62,142.57,7.0139]
[1720025519037,7.0117,142.62,142.58,45.0]
[1720025519224,7.0127,142.6,142.58,45.0]
[1720025519418,7.0133,142.59,142.54,17.538]
[1720025519632,7.0133,142.59,142.55,45.0]
[1720025519827,7.0133,142.59,142.55,52.015]
[1720025520328,7.0143,142.57,142.52,7.0162]
[1720025520627,7.0147,142.56,142.52,7.0162]
[1720025521327,0.17,142.6,142.53,7.0159]
[1720025521523,20.34,142.6,142.53,7.0159]
[1720025522028,20.34,142.6,142.54,45.0]
[1720025522431,7.0137,142.58,142.54,45.0]
[1720025522723,7.0141,142.57,142.54,45.0]
[1720025522923,7.0137,142.58,142.54,52.0155]
[1720025523928,7.0141,142.57,142.54,45.0]
[1720025524110,20.34,142.6,142.54,45.0]
[1720025524111,7.015,142.55,142.54,45.0]
[1720025524311,17.5334,142.59,142.54,45.0]
[1720025524312,7.0147,142.56,142.54,45.0]
[1720025524723,7.0147,142.56,142.53,45.0]
[1720025524927,21.9544,142.57,142.5,17.5431]
[1720025525230,7.016,142.53,142.5,17.5431]
[1720025525427,7.016,142.53,142.48,0.8430844]
[1720025525428,7.016,142.53,142.48,7.8614844]
[1720025525633,7.016,142.53,142.48,0.8430844]
[1720025525835,7.016,142.53,142.48,7.8614844]
[1720025526124,7.0166,142.52,142.49,1.40330261]
[1720025526333,7.0166,142.52,142.48,0.8430844]
[1720025526528,7.0162,142.53,142.48,7.8611844]
[1720025526906,7.0165,142.52,142.48,7.8611844]
[1720025527223,37.8765,142.56,142.48,0.8430844]
[1720025527435,7.0172,142.51,142.48,0.8430844]
[1720025527614,37.8765,142.56,142.48,0.8430844]
[1720025527820,7.0167,142.52,142.48,7.8614844]
[1720025528006,7.0167,142.52,142.48,0.8430844]
[1720025528331,7.0171,142.51,142.48,0.8430844]
[1720025528931,7.0161,142.53,142.48,7.8613844]
[1720025529105,7.0161,142.53,142.49,45.0]
[1720025529306,7.0156,142.54,142.5,7.0173]
[1720025529518,7.0156,142.54,142.51,45.0]
[1720025530128,20.34,142.56,142.51,45.0]
[1720025530316,7.4364,142.54,142.51,45.0]
[1720025530810,0.4208,142.54,142.5,45.0]
[1720025531013,0.4208,142.54,142.48,0.8430844]
[1720025531451,20.4208,142.54,142.48,0.8430844]
[1720025531814,7.0172,142.51,142.48,0.8430844]
[1720025532217,7.0175,142.5,142.48,0.8430844]
[1720025533054,20.4208,142.54,142.48,0.8430844]
[1720025533055,7.018,142.49,142.48,0.8430844]
[1720025533216,17.5404,142.53,142.48,0.8430844]
[1720025533217,7.0172,142.51,142.48,0.8430844]
[1720025534839,7.018,142.49,142.48,0.8430844]
[1720025537127,49.6154,142.49,142.48,0.8430844]
[1720025537437,49.9554,142.49,142.48,0.8430844]
[1720025539326,20.0,142.49,142.48,0.8430844]
[1720025539520,6.2816,142.52,142.48,0.8430844]
[1720025539842,16.2987,142.53,142.49,17.5446]
[1720025540048,16.2987,142.53,142.48,0.8430844]
[1720025540350,7.018,142.49,142.48,0.8430844]
[1720025541130,27.018,142.49,142.48,0.8430844]
[1720025541330,27.358,142.49,142.48,0.8430844]
[1720025544037,27.018,142.49,142.48,0.8430844]
[1720025544352,27.358,142.49,142.48,0.8430844]
[1720025548748,20.0,142.49,142.48,0.8430844]
[1720025549255,27.018,142.49,142.48,0.8430844]
[1720025550143,27.358,142.49,142.48,0.8430844]
[1720025552072,20.4208,142.49,142.48,0.8430844]
[1720025552864,27.4388,142.49,142.48,0.8430844]
[1720025554169,27.7788,142.49,142.48,0.8430844]
[1720025555356,27.6088,142.49,142.48,0.8430844]
[1720025555758,27.4388,142.49,142.48,0.8430844]
[1720025556156,20.4208,142.49,142.48,0.8430844]
[1720025556473,27.4388,142.49,142.48,0.8430844]
[1720025557865,27.6088,142.49,142.48,0.8430844]
[1720025558054,27.7788,142.49,142.48,0.8430844]
[1720025558254,27.7788,142.49,142.38,32.9859]
[1720025558255,17.5463,142.48,142.38,32.9859]
[1720025558456,20.17,142.47,142.38,32.9859]
[1720025558658,17.7188,142.46,142.38,32.9859]
[1720025558866,20.0,142.45,142.38,32.9859]
[1720025559072,7.0211,142.43,142.39,7.0226]
[1720025559263,20.0,142.45,142.35,17.5618]
[1720025559264,0.17,142.42,142.35,17.5618]
[1720025559460,7.0238,142.38,142.34,3.3205844]
[1720025559661,17.8939,142.42,142.34,10.3458844]
[1720025559870,7.0231,142.39,142.35,7.0249]
[1720025560080,7.0226,142.4,142.36,7.0244]
[1720025560377,7.0226,142.4,142.36,24.5854]
[1720025560581,7.0226,142.4,142.36,17.561]
[1720025560773,7.0226,142.4,142.36,24.5854]
[1720025561161,7.0241,142.37,142.34,0.8430844]
[1720025561361,7.0236,142.38,142.34,7.8684844]
[1720025561669,7.0232,142.39,142.34,7.8684844]
[1720025561973,20.0,142.38,142.34,7.8684844]
[1720025562382,27.0236,142.38,142.34,7.8684844]
[1720025562775,27.0236,142.38,142.34,0.8430844]
[1720025563274,27.0236,142.38,142.34,2.24789671]
[1720025563275,20.0,142.38,142.34,2.24789671]
[1720025563482,7.0248,142.36,142.34,47.24789671]
[1720025563868,7.0241,142.37,142.34,47.24789671]
[1720025564471,7.0245,142.36,142.34,0.8430844]
[1720025565161,7.023,142.39,142.34,2.24802707]
[1720025565374,20.0,142.4,142.36,24.5852]
[1720025565577,20.0,142.43,142.37,45.0]
[1720025565769,7.0234,142.38,142.37,45.0]
[1720025566075,7.0234,142.38,142.34,0.8430844]
[1720025566277,7.0234,142.38,142.34,52.8683844]
[1720025566483,7.0231,142.39,142.34,52.8683844]
[1720025566659,7.0227,142.4,142.35,17.562]
[1720025566859,7.0221,142.41,142.36,52.024]
[1720025567081,20.0,142.4,142.36,52.024]
[1720025567468,27.0227,142.4,142.36,52.024]
[1720025567780,20.0,142.4,142.37,7.0236]
[1720025567979,7.0223,142.41,142.38,45.0]
[1720025568185,20.0,142.4,142.38,45.0]
[1720025568479,7.0229,142.39,142.38,45.0]
[1720025569365,20.0,142.4,142.34,18.4054844]
[1720025569671,7.0235,142.38,142.34,26.83555701]
[1720025570081,7.023,142.39,142.35,7.0247]
[1720025570266,7.023,142.39,142.34,18.4054844]
[1720025570676,7.023,142.39,142.35,7.0248]
[1720025570969,27.0222,142.41,142.37,7.0237]
[1720025571174,27.0222,142.41,142.38,45.0]
[1720025571462,6.0323,142.46,142.39,1.40442112]
[1720025571675,22.92876268,142.48,142.39,1.40442112]
[1720025571676,7.0209,142.44,142.4,1.40421565]
[1720025571878,7.0209,142.44,142.4,46.40421565]
[1720025572085,7.0201,142.45,142.4,46.40421565]
[1720025572672,17.5473,142.48,142.4,46.40421565]
[1720025572673,7.0205,142.44,142.4,46.40421565]
[1720025573196,7.0205,142.44,142.4,53.42661565]
[1720025574073,17.5488,142.46,142.4,45.0]
[1720025574281,0.4208,142.44,142.4,45.0]
[1720025574692,7.0218,142.42,142.4,45.0]
[1720025575079,7.0219,142.41,142.4,45.0]
[1720025575485,7.0214,142.42,142.4,45.0]
[1720025575681,7.0214,142.42,142.39,45.0]
[1720025576398,7.0211,142.43,142.39,52.0227]
[1720025576866,20.0,142.45,142.39,71.59]
[1720025577074,20.0,142.45,142.41,7.0216]
[1720025577298,7.0197,142.46,142.42,52.0214]
[1720025577601,20.0,142.45,142.43,45.0]
[1720025578791,27.02,142.45,142.43,45.0]
[1720025579001,27.02,142.45,142.42,45.0]
[1720025579305,27.02,142.45,142.42,46.40409157]
[1720025580191,27.0203,142.45,142.42,45.0]
[1720025580606,20.0,142.45,142.42,45.0]
[1720025580996,7.0206,142.44,142.42,45.0]
[1720025581219,7.0206,142.44,142.41,45.0]
[1720025581533,7.0206,142.44,142.41,46.40417153]
[1720025582025,7.0201,142.45,142.41,46.40417153]
[1720025582402,7.0201,142.45,142.41,53.42607153]
[1720025582924,7.0201,142.45,142.41,46.40417153]
[1720025583214,7.0206,142.44,142.41,46.40417153]
[1720025583597,7.0206,142.44,142.41,45.0]
[1720025583924,7.0206,142.44,142.41,46.40409826]
[1720025584285,7.0206,142.44,142.41,45.0]
[1720025585028,20.0,142.46,142.41,45.0]
[1720025585217,7.0189,142.48,142.42,27.58340302]
[1720025585394,7.0189,142.48,142.43,53.01390221]
[1720025585395,7.0186,142.48,142.43,53.01390221]
[1720025585593,7.0186,142.48,142.43,45.99340221]
[1720025585826,7.019,142.47,142.43,45.99340221]
[1720025586113,7.0191,142.47,142.43,45.0]
[1720025586418,7.0187,142.48,142.43,52.0207]
[1720025586592,7.0187,142.48,142.44,7.0203]
[1720025586792,17.5426,142.51,142.45,45.0]
[1720025587103,17.5426,142.51,142.44,7.0202]
[1720025587104,7.0185,142.48,142.44,7.0202]
[1720025587311,20.0,142.5,142.45,52.0198]
[1720025587532,7.0171,142.51,142.47,7.019]
[1720025587710,20.0,142.5,142.43,45.0]
[1720025588214,7.0184,142.49,142.45,7.0199]
[1720025588430,7.0184,142.49,142.46,45.0]
[1720025588613,7.0184,142.49,142.44,7.0202]
[1720025588817,7.0186,142.48,142.45,45.0]
[1720025589020,37.5414,142.52,142.45,45.0]
[1720025589227,7.0187,142.48,142.44,52.0202]
[1720025589527,7.0184,142.49,142.45,8.42365121]
[1720025589709,7.0184,142.49,142.46,45.0]
[1720025590629,7.0177,142.5,142.46,52.0193]
[1720025590944,20.0,142.52,142.46,46.40375104]
[1720025591128,7.0163,142.53,142.48,7.0181]
[1720025591428,20.0,142.52,142.49,46.40340884]
[1720025591631,20.0,142.52,142.46,1.40342196]
[1720025591829,20.0,142.52,142.47,26.59]
[1720025592038,20.0,142.52,142.49,7.0178]
[1720025592212,20.4208,142.52,142.49,1.40342143]
[1720025592412,0.4208,142.52,142.49,1.40342143]
[1720025593332,0.4208,142.52,142.5,7.0175]
[1720025593509,0.4208,142.52,142.51,46.4032542]
[1720025594431,0.4208,142.52,142.51,45.0]
[1720025594619,0.4208,142.52,142.5,45.0]
[1720025595122,7.017,142.51,142.5,45.0]
[1720025595311,7.4375,142.52,142.5,45.0]
[1720025595623,0.4208,142.52,142.5,45.0]
[1720025597910,0.4208,142.52,142.47,26.59]
[1720025598110,7.0175,142.5,142.47,26.59]
[1720025598349,7.0172,142.51,142.48,45.0]
[1720025599052,7.0178,142.5,142.48,45.0]
[1720025599720,7.0178,142.5,142.45,7.0198]
[1720025600030,17.9625,142.52,142.46,45.0]
[1720025600206,20.34,142.51,142.45,45.0]
[1720025600421,20.34,142.51,142.44,26.59]
[1720025600621,0.34,142.51,142.44,26.59]
[1720025600834,7.0177,142.5,142.46,7.0194]
[1720025601735,7.0177,142.5,142.44,26.59]
[1720025601936,7.0177,142.5,142.45,52.0197]
[1720025602329,7.1872,142.51,142.46,7.0192]
[1720025602531,27.0176,142.5,142.47,45.0]
[1720025602732,7.0176,142.5,142.47,45.0]
[1720025602940,7.1871,142.51,142.47,52.0188]
[1720025603135,20.0,142.5,142.48,8.4220128]
[1720025603354,20.0,142.5,142.49,52.018]
[1720025603657,0.4208,142.52,142.49,52.018]
[1720025603834,0.4208,142.52,142.47,71.59]
[1720025604154,0.4208,142.52,142.5,7.0171]
[1720025604449,0.4208,142.52,142.47,71.59]
[1720025604450,0.4208,142.52,142.51,45.0]
[1720025604646,0.4208,142.52,142.49,7.0179]
[1720025604831,0.4208,142.52,142.5,45.0]
[1720025605031,0.4208,142.52,142.5,52.0174]
[1720025605243,0.4208,142.52,142.5,45.0]
[1720025606256,0.4208,142.52,142.47,26.59]
[1720025606460,7.0172,142.51,142.48,45.0]
[1720025606831,7.0172,142.51,142.46,7.0193]
[1720025606832,7.018,142.49,142.45,7.0198]
[1720025607155,7.0174,142.51,142.47,7.0189]
[1720025607352,17.9626,142.52,142.44,26.59]
[1720025607550,20.0,142.51,142.45,7.0199]
[1720025608062,7.0183,142.49,142.45,7.0199]
[1720025608533,7.0177,142.5,142.45,7.0199]
[1720025608861,7.0177,142.5,142.46,7.0194]
[1720025612345,7.0177,142.5,142.45,7.0198]
[1720025612552,7.018,142.49,142.46,45.0]
[1720025613570,7.0186,142.48,142.46,45.0]
[1720025613768,7.0186,142.48,142.45,45.0]
[1720025614272,7.0182,142.49,142.45,52.0199]
[1720025614572,7.0186,142.48,142.45,45.0]
[1720025615352,7.0181,142.49,142.45,52.0199]
[1720025615672,20.0,142.51,142.45,45.0]
[1720025615874,7.0173,142.51,142.46,7.0193]
[1720025616175,0.4208,142.48,142.46,7.0193]
[1720025616671,0.4208,142.48,142.47,7.019]
[1720025616864,0.4208,142.48,142.47,78.609]
[1720025625685,0.4208,142.48,142.41,16.5164]
[1720025625878,0.4208,142.48,142.41,26.59]
[1720025625879,7.02,142.46,142.41,26.59]
[1720025626282,7.02,142.45,142.41,33.6116]
[1720025626479,7.02,142.45,142.41,7.0216]
[1720025626669,7.0206,142.44,142.39,7.0228]
[1720025626870,7.0206,142.44,142.4,7.0223]
[1720025626871,7.0205,142.44,142.4,7.0223]
[1720025627995,7.0201,142.45,142.4,7.0223]
[1720025628290,7.0201,142.45,142.41,7.0217]
[1720025629162,7.0201,142.45,142.42,45.0]
[1720025629784,27.0205,142.44,142.4,7.0224]
[1720025631180,27.0205,142.44,142.41,45.0]
[1720025632866,27.0205,142.44,142.4,7.0224]
[1720025633071,20.0,142.44,142.4,7.0224]
[1720025633372,20.0,142.44,142.38,26.59]
[1720025633569,27.0201,142.45,142.39,45.0]
[1720025633884,7.0207,142.44,142.4,7.0223]
[1720025634080,7.0207,142.44,142.39,52.0228]
[1720025635793,27.3601,142.45,142.41,7.0217]
[1720025635990,0.34,142.44,142.41,7.0217]
[1720025636382,0.34,142.44,142.39,45.0]
[1720025636578,20.0,142.48,142.39,45.0]
[1720025636780,7.0202,142.45,142.41,7.0218]
[1720025636999,20.0,142.44,142.41,7.0218]
[1720025637874,20.0,142.45,142.42,7.0213]
[1720025638288,20.0,142.45,142.41,7.0218]
[1720025639490,20.0,142.45,142.42,7.0214]
[1720025639690,20.0,142.45,142.4,0.99357195]
[1720025639880,0.4208,142.48,142.4,0.99357195]
[1720025639881,20.4208,142.48,142.4,0.99357195]
[1720025640491,20.4208,142.48,142.42,7.0213]
[1720025640788,7.0198,142.46,142.43,45.0]
[1720025640987,20.0,142.45,142.43,45.0]
[1720025641185,20.0,142.45,142.42,45.0]
[1720025641386,20.0,142.45,142.41,45.0]
[1720025641583,0.34,142.47,142.41,45.0]
[1720025641794,7.0205,142.44,142.43,13.28]
[1720025642192,7.0204,142.44,142.43,13.28]
[1720025642391,7.0198,142.46,142.43,13.28]
[1720025642703,20.0,142.45,142.44,13.28]
[1720025643077,27.02,142.45,142.44,13.28]
[1720025643277,27.02,142.45,142.43,13.28]
[1720025643880,27.02,142.45,142.41,45.0]
[1720025644131,7.0206,142.44,142.42,13.28]
[1720025644482,7.0219,142.42,142.39,13.28]
[1720025644682,7.0211,142.43,142.4,13.28]
[1720025645412,7.0206,142.44,142.4,13.28]
[1720025645594,27.3602,142.45,142.41,13.28]
[1720025645787,27.0202,142.45,142.42,13.28]
[1720025646705,7.0206,142.44,142.38,53.12]
[1720025646912,7.0212,142.43,142.41,13.28]
[1720025647098,7.0206,142.44,142.41,13.28]
[1720025647984,20.0,142.45,142.41,13.28]
[1720025648190,0.17,142.46,142.41,13.28]
[1720025648191,7.021,142.43,142.41,13.28]
[1720025650215,7.021,142.43,142.39,52.0225]
[1720025650419,7.021,142.43,142.41,13.28]
[1720025650906,7.0206,142.44,142.41,13.28]
[1720025651317,7.0209,142.43,142.41,13.28]